fUSD/lending_fUSD_20260217
["ID","MTS","AMOUNT","RATE_DAILY","PERIOD"]
[405863212,1771368654316,-250.0,0.00017808,20]
[405863213,1771368654326,-250.0,0.00017808,20]
[405863214,1771368654335,-250.0,0.00017808,20]
[405863215,1771368654344,-151.0,0.00017814,2]
[405863216,1771368654354,-2000.0,0.0001782,2]
[405863217,1771368654363,-2000.0,0.0001782,2]
[405863218,1771368654373,-1000.0,0.00017835,2]
[405863219,1771368654383,-1000.0,0.0001784,2]
[405863220,1771368654392,-1000.0,0.00017845,2]
[405863221,1771368654402,-1000.0,0.00017846,2]
[405863222,1771368654411,-200.0,0.00017855,2]
[405863223,1771368654421,-500.0,0.00017856,2]
[405863224,1771368654430,-200.0,0.00017856,2]
[405863225,1771368654440,-200.0,0.00017856,2]
[405863226,1771368654449,-1000.0,0.00017858,2]
[405863227,1771368654459,-996.0200937,0.00017861,2]
[405863228,1771368654469,-1751.06105486,0.00017863,2]
[405863229,1771368654479,-151.0,0.00017869,2]
[405863230,1771368654488,-150.0,0.00017881,2]
[405863231,1771368654498,-1000.0,0.00017882,2]
[405863232,1771368654507,-150.0,0.00017889,2]
[405863233,1771368654516,-1000.0,0.00017889,2]
[405863234,1771368654526,-1013.23,0.00017899,2]
[405863235,1771368654535,-150.0,0.000179,2]
[405863236,1771368654545,-159.75009324,0.000179,2]
[405863237,1771368654554,-150.0,0.000179,2]
[405863238,1771368654564,-150.0,0.000179,2]
[405863239,1771368654574,-1066.36814864,0.000179,2]
[405863240,1771368654584,-150.0,0.000179,2]
[405863241,1771368654593,-25000.0,0.000179,3]
[405863242,1771368654602,-150.0,0.000179,2]
[405863243,1771368654613,-49398.65267979,0.000179,2]
[405863244,1771368654622,-150.0,0.000179,2]
[405863245,1771368654632,-64549.94771307,0.000179,2]
[405863246,1771368654641,-2315.0,0.000179,6]
[405863247,1771368654650,-445.585732,0.000179,2]
[405863248,1771368654659,-445.585732,0.000179,2]
[405863249,1771368654669,-445.585732,0.000179,2]
[405863250,1771368654678,-445.585732,0.000179,2]
[405863251,1771368654687,-1000.0,0.000179,2]
[405863252,1771368654696,-1000.0,0.000179,2]
[405863253,1771368654705,-1000.0,0.000179,2]
[405863254,1771368654714,-1000.0,0.000179,2]
[405863255,1771368654723,-1000.0,0.000179,2]
[405863256,1771368654733,-1000.0,0.000179,2]
[405863257,1771368654742,-1000.0,0.000179,2]
[405863258,1771368654752,-1038.507706,0.000179,2]
[405863259,1771368654763,-150.0,0.000179,2]
[405863260,1771368654772,-1573.195363,0.000179,2]
[405863261,1771368654781,-1573.195363,0.000179,2]
[405863262,1771368654791,-1573.195363,0.000179,2]
[405863263,1771368654801,-1573.195363,0.000179,2]
[405863264,1771368654810,-151.0,0.000179,2]
[405863265,1771368654820,-222.568912,0.000179,2]
[405863266,1771368654831,-276.993442,0.000179,2]
[405863267,1771368654840,-222.568912,0.000179,2]
[405863268,1771368654849,-276.993442,0.000179,2]
[405863269,1771368654858,-222.568912,0.000179,2]
[405863270,1771368654867,-276.993442,0.000179,2]
[405863271,1771368654876,-222.568912,0.000179,2]
[405863272,1771368654885,-276.993442,0.000179,2]
[405863273,1771368654894,-37474.45314742,0.000179,2]
[405863274,1771368654903,-311.844149,0.000179,2]
[405863275,1771368654912,-311.844149,0.000179,2]
[405863276,1771368654921,-311.844149,0.000179,2]
[405863277,1771368654930,-311.844149,0.000179,2]
[405863278,1771368654939,-150.0,0.0001792,2]
[405863279,1771368654948,-150.0,0.00017922,2]
[405863280,1771368654957,-1000.0,0.00017923,2]
[405863281,1771368654967,-1000.0,0.00017925,2]
[405863282,1771368654976,-1000.0,0.00017947,2]
[405863283,1771368654985,-1000.0,0.00017947,2]
[405863284,1771368654994,-649.58,0.0001796,2]
[405863285,1771368655003,-1180.75,0.0001796,2]
[405863286,1771368655013,-150.0,0.0001796,2]
[405863287,1771368655022,-1000.0,0.0001796,2]
[405863288,1771368655031,-1013.23,0.0001796,2]
[405863289,1771368655040,-76059.5694015,0.00017961,2]
[405863290,1771368655049,-1095.2419668,0.00017961,2]
[405863291,1771368655058,-228178.7082044,0.00017961,2]
[405863292,1771368655068,-821.4314751,0.00017961,2]
[405863293,1771368655077,-280835.3331746,0.00017961,2]
[405863294,1771368655087,-2464.2944253,0.00017961,2]
[405863295,1771368655096,-270805.499847,0.00017961,2]
[405863296,1771368655105,-13142.9036015,0.00017961,2]
[405863297,1771368655114,-500.0,0.00017982,2]
[405863298,1771368655125,-1000.0,0.00017987,2]
[405863299,1771368655134,-576.40340077,0.0001799,2]
[405863300,1771368655143,-500.0,0.0001799,2]
[405863301,1771368655152,-500.0,0.0001799,2]
[405863302,1771368655162,-1000.0,0.00017996,2]
[405863303,1771368655171,-151.0,0.00017997,2]
[405863304,1771368655182,-1000.0,0.00017998,3]
[405863305,1771368655191,-300.0,0.00017999,2]
[405863306,1771368655201,-300.0,0.00017999,2]
[405863307,1771368655210,-300.0,0.00017999,2]
[405863308,1771368655220,-300.0,0.00017999,2]
[405863309,1771368655230,-666.0,0.00017999,2]
[405863310,1771368655239,-649.58,0.00017999,2]
[405863311,1771368655249,-649.58,0.00017999,2]
[405863312,1771368655258,-649.58,0.00017999,2]
[405863313,1771368655268,-649.58,0.00017999,2]
[405863314,1771368655277,-649.58,0.00017999,2]
[405863315,1771368655287,-649.58,0.00017999,2]
[405863316,1771368655297,-649.58,0.00017999,2]
[405863317,1771368655307,-649.58,0.00017999,2]
[405863318,1771368655317,-649.58,0.00017999,2]
[405863319,1771368655327,-649.58,0.00017999,2]
[405863320,1771368655336,-649.58,0.00017999,2]
[405863321,1771368655346,-649.58,0.00017999,2]
[405863322,1771368655355,-649.58,0.00017999,2]
[405863323,1771368655364,-649.58,0.00017999,2]
[405863324,1771368655374,-649.74,0.00017999,2]
[405863325,1771368655383,-1180.75,0.00017999,2]
[405863326,1771368655392,-1180.75,0.00017999,2]
[405863327,1771368655403,-1180.75,0.00017999,2]
[405863328,1771368655412,-1180.75,0.00017999,2]
[405863329,1771368655422,-1180.75,0.00017999,2]
[405863330,1771368655432,-1180.75,0.00017999,2]
[405863331,1771368655442,-1180.75,0.00017999,2]
[405863332,1771368655451,-1180.75,0.00017999,2]
[405863333,1771368655461,-1180.75,0.00017999,2]
[405863334,1771368655471,-1180.75,0.00017999,2]
[405863335,1771368655480,-1180.75,0.00017999,2]
[405863336,1771368655490,-1180.75,0.00017999,2]
[405863337,1771368655500,-1180.75,0.00017999,2]
[405863338,1771368655510,-1180.75,0.00017999,2]
[405863339,1771368655519,-1180.79,0.00017999,2]
[405863340,1771368655529,-1013.23,0.00017999,2]
[405863341,1771368655539,-1013.23,0.00017999,2]
[405863342,1771368655548,-1013.23,0.00017999,2]
[405863343,1771368655558,-1013.23,0.00017999,2]
[405863344,1771368655568,-1013.23,0.00017999,2]
[405863345,1771368655577,-1013.23,0.00017999,2]
[405863346,1771368655587,-1013.23,0.00017999,2]
[405863347,1771368655598,-1013.23,0.00017999,2]
[405863348,1771368655608,-1013.23,0.00017999,2]
[405863349,1771368655618,-1013.23,0.00017999,2]
[405863350,1771368655627,-1013.23,0.00017999,2]
[405863351,1771368655636,-1013.32589873,0.00017999,2]
[405863352,1771368655646,-666.0,0.00017999,2]
[405863353,1771368655657,-300.0,0.00017999,2]
[405863354,1771368655666,-243.22753519,0.00017999,2]
[405863355,1771368655676,-152.0,0.00018,2]
[405863356,1771368655685,-1508.0,0.00018,2]
[405863357,1771368655694,-152.0,0.00018,2]
[405863358,1771368655704,-1508.0,0.00018,2]
[405863359,1771368655714,-152.0,0.00018,2]
[405863360,1771368655724,-153.0,0.00018,2]
[405863361,1771368655733,-1508.0,0.00018,2]
[405863362,1771368655743,-152.0,0.00018,2]
[405863363,1771368655755,-153.0,0.00018,2]
[405863364,1771368655764,-152.0,0.00018,2]
[405863365,1771368655774,-1508.0,0.00018,2]
[405863366,1771368655783,-153.0,0.00018,2]
[405863367,1771368655793,-152.0,0.00018,2]
[405863368,1771368655803,-1508.0,0.00018,2]
[405863369,1771368655813,-152.0,0.00018,2]
[405863370,1771368655823,-1508.0,0.00018,2]
[405863371,1771368655832,-153.0,0.00018,2]
[405863372,1771368655842,-152.0,0.00018,2]
[405863373,1771368655852,-1508.0,0.00018,2]
[405863374,1771368655861,-153.0,0.00018,2]
[405863375,1771368655871,-158.65284712,0.00018,2]
[405863376,1771368655880,-152.0,0.00018,2]
[405863377,1771368655890,-1508.0,0.00018,2]
[405863378,1771368655899,-153.0,0.00018,2]
[405863379,1771368655909,-1508.0,0.00018,2]
[405863380,1771368655919,-153.0,0.00018,2]
[405863381,1771368655929,-1508.0,0.00018,2]
[405863382,1771368655938,-153.0,0.00018,2]
[405863383,1771368655947,-152.0,0.00018,2]
[405863384,1771368655957,-1508.0,0.00018,2]
[405863385,1771368655966,-152.0,0.00018,2]
[405863386,1771368655976,-1508.0,0.00018,2]
[405863387,1771368655985,-152.0,0.00018,2]
[405863388,1771368655994,-153.0,0.00018,2]
[405863389,1771368656004,-153.0,0.00018,2]
[405863390,1771368656013,-152.0,0.00018,2]
[405863391,1771368656022,-153.0,0.00018,2]
[405863392,1771368656032,-153.0,0.00018,2]
[405863393,1771368656041,-153.0,0.00018,2]
[405863394,1771368656050,-152.0,0.00018,2]
[405863395,1771368656059,-153.0,0.00018,2]
[405863396,1771368656068,-152.0,0.00018,2]
[405863397,1771368656078,-153.0,0.00018,2]
[405863398,1771368656087,-152.0,0.00018,2]
[405863399,1771368656097,-153.0,0.00018,2]
[405863400,1771368656107,-152.0,0.00018,2]
[405863401,1771368656116,-153.0,0.00018,2]
[405863402,1771368656125,-152.0,0.00018,2]
[405863403,1771368656135,-153.0,0.00018,2]
[405863404,1771368656144,-152.0,0.00018,2]
[405863405,1771368656153,-153.0,0.00018,2]
[405863406,1771368656163,-150.0,0.00018,2]
[405863407,1771368656173,-1000.0,0.00018,2]
[405863408,1771368656183,-389.83552787,0.00018,2]
[405863409,1771368656193,-2281669.24287323,0.00018,2]
[405863410,1771368656203,-7514.99024711,0.00018,2]
[405863411,1771368656213,-1990266.94467462,0.00018,2]
[405863412,1771368657066,-3608.27472446,0.00018,2]
[405863413,1771368657077,-505.888,0.00018,2]
[405863414,1771368657296,-823.03351298,0.000128,2]
[405863415,1771368657312,-594.97387905,0.000128,2]
[405863416,1771368657323,-266.40447413,0.000128,2]
[405863417,1771368657335,-213.20179561,0.000128,2]
[405863418,1771368657343,-73.28780012,0.00017808,20]
[405863419,1771368657436,-176.71219988,0.00017808,20]
[405863420,1771368657445,-250.0,0.00017808,20]
[405863421,1771368657455,-250.0,0.00017808,20]
[405863422,1771368657464,-250.0,0.00017808,20]
[405863423,1771368657475,-250.0,0.00017808,20]
[405863424,1771368657483,-250.0,0.00017808,20]
[405863425,1771368657492,-250.0,0.00017808,20]
[405863426,1771368657502,-250.0,0.00017808,20]
[405863427,1771368657512,-250.0,0.00017808,20]
[405863428,1771368657521,-250.0,0.00017808,20]
[405863429,1771368657531,-250.0,0.00017808,20]
[405863430,1771368657540,-250.0,0.00017808,20]
[405863431,1771368657549,-250.0,0.00017808,20]
[405863432,1771368657558,-250.0,0.00017808,20]
[405863433,1771368657567,-164.28930541,0.00017808,20]
[405863434,1771368657590,-175.58162159,0.00017808,20]
[405863435,1771368657600,-434.97100184,0.00018,2]
[405863436,1771368657610,-1896.21,0.00018,2]
[405863446,1771369390023,-172.0,0.000195,120]
[405863448,1771369442195,-1763.15,0.000203,120]
[405863449,1771369442219,-64.85,0.00020475,120]
[405863494,1771369832244,-500.0,7.252e-05,2]
[405863496,1771369832254,-1.40847387,7.498e-05,2]
[405863503,1771369838266,-148.59152613,7.498e-05,2]
[405863504,1771369838277,-300.0,7.498e-05,2]
[405863505,1771369838286,-191.80595015,7.498e-05,2]
[405863506,1771369838297,-837.57754225,7.498e-05,2]
[405863507,1771369838445,-170.6165076,7.498e-05,2]
[405863508,1771369838455,-3500000.0,7.499e-05,2]
[405863509,1771369838465,-176.81,7.5e-05,2]
[405863510,1771369838475,-182.28581927,7.5e-05,2]
[405863511,1771369838484,-12978.99200758,7.5e-05,2]
[405863512,1771369838494,-500.0,7.545e-05,2]
[405863513,1771369838503,-300.0,7.545e-05,2]
[405863514,1771369838512,-150.0,7.545e-05,7]
[405863515,1771369838522,-625.95457302,7.598e-05,2]
[405863516,1771369838532,-5013.89,7.599e-05,2]
[405863517,1771369838541,-484.171,7.599e-05,2]
[405863518,1771369838551,-1700.0,7.6e-05,2]
[405863519,1771369838560,-4259.95,7.601e-05,2]
[405863521,1771369838569,-9999.99,7.696e-05,2]
[405863523,1771369838579,-9999.99,7.696e-05,2]
[405863525,1771369838589,-150.99,7.696e-05,2]
[405863527,1771369838598,-150.99,7.696e-05,2]
[405863529,1771369838607,-9999.99,7.696e-05,2]
[405863531,1771369838616,-999.99,7.696e-05,2]
[405863532,1771369838625,-9999.99,7.696e-05,2]
[405863534,1771369838635,-9999.99,7.696e-05,2]
[405863536,1771369838644,-13062.74,7.696e-05,2]
[405863538,1771369838655,-499.99,7.696e-05,2]
[405863540,1771369838664,-299.99,7.696e-05,2]
[405863542,1771369838674,-3500.0,7.7e-05,2]
[405863544,1771369838683,-1206.0,7.721e-05,2]
[405863546,1771369838693,-160.0,7.737e-05,2]
[405863548,1771369838704,-193.0,7.778e-05,2]
[405863550,1771369838713,-392.0,7.793e-05,2]
[405863552,1771369838723,-5300.0,7.8e-05,2]
[405863554,1771369838732,-329.0,7.809e-05,2]
[405863556,1771369838742,-1967.0,7.818e-05,2]
[405863558,1771369838751,-314.0,7.824e-05,2]
[405863560,1771369838760,-395.0,7.833e-05,2]
[405863561,1771369838769,-241.0,7.84e-05,2]
[405863563,1771369838778,-382.0,7.849e-05,2]
[405863565,1771369838788,-487.0,7.855e-05,2]
[405863567,1771369838798,-7000.0,7.9e-05,2]
[405863569,1771369838808,-37943.359931,7.945e-05,2]
[405863571,1771369838820,-193.0,7.977e-05,2]
[405863573,1771369838830,-8800.0,8e-05,2]
[405863575,1771369838840,-730.0,8.011e-05,2]
[405863577,1771369838849,-276.0,8.021e-05,2]
[405863579,1771369838859,-1285.1,8.178e-05,2]
[405863581,1771369838869,-500.0,8.219e-05,2]
[405863583,1771369838878,-500.0,8.219e-05,2]
[405863585,1771369838888,-202.89365559,8.219e-05,2]
[405863587,1771369838898,-500.0,8.219e-05,2]
[405863589,1771369838907,-500.0,8.219e-05,2]
[405863591,1771369838916,-500.0,8.219e-05,2]
[405863593,1771369838926,-500.0,8.219e-05,2]
[405863595,1771369838936,-500.0,8.219e-05,2]
[405863597,1771369838945,-500.0,8.219e-05,2]
[405863599,1771369838955,-150.0,8.219e-05,2]
[405863601,1771369838964,-500.0,8.219e-05,2]
[405863603,1771369838973,-500.0,8.219e-05,2]
[405863605,1771369838983,-500.0,8.219e-05,2]
[405863606,1771369838992,-150.31509327,8.219e-05,2]
[405863608,1771369839002,-500.0,8.219e-05,2]
[405863611,1771369839011,-500.0,8.219e-05,2]
[405863613,1771369839021,-596.0,8.219e-05,2]
[405863614,1771369839030,-150.0,8.219e-05,2]
[405863616,1771369839040,-500.0,8.219e-05,2]
[405863618,1771369839049,-500.0,8.219e-05,2]
[405863621,1771369839059,-500.0,8.219e-05,2]
[405863622,1771369839070,-500.0,8.219e-05,2]
[405863624,1771369839079,-150.0,8.219e-05,2]
[405863626,1771369839089,-500.0,8.219e-05,2]
[405863628,1771369839102,-500.0,8.219e-05,2]
[405863630,1771369839112,-150.0,8.219e-05,2]
[405863632,1771369839122,-500.0,8.219e-05,2]
[405863634,1771369839131,-150.0,8.219e-05,2]
[405863636,1771369839142,-500.0,8.219e-05,2]
[405863637,1771369839152,-500.0,8.219e-05,2]
[405863638,1771369839162,-500.0,8.219e-05,2]
[405863639,1771369839171,-150.0,8.219e-05,2]
[405863640,1771369839181,-500.0,8.219e-05,2]
[405863641,1771369839191,-150.0,8.219e-05,2]
[405863642,1771369839200,-150.0,8.219e-05,2]
[405863643,1771369839209,-500.0,8.219e-05,2]
[405863644,1771369839219,-500.0,8.219e-05,2]
[405863645,1771369839228,-500.0,8.219e-05,2]
[405863646,1771369839238,-500.0,8.219e-05,2]
[405863647,1771369839247,-150.0,8.219e-05,2]
[405863648,1771369839257,-150.0,8.219e-05,2]
[405863649,1771369839266,-500.0,8.219e-05,2]
[405863650,1771369839276,-375.839389,8.219e-05,2]
[405863651,1771369839285,-500.0,8.219e-05,2]
[405863652,1771369839295,-393.71,8.219e-05,2]
[405863653,1771369839304,-255.0,8.248e-05,2]
[405863654,1771369839313,-420.0,8.248e-05,2]
[405863655,1771369839323,-1680.0,8.248e-05,2]
[405863656,1771369839333,-250.0,8.25e-05,2]
[405863657,1771369839342,-250.0,8.25e-05,2]
[405863659,1771369839352,-502.16866536,8.274e-05,2]
[405863660,1771369839361,-500.0,8.274e-05,2]
[405863661,1771369839371,-500.0,8.274e-05,2]
[405863662,1771369839380,-500.0,8.274e-05,2]
[405863663,1771369839390,-500.0,8.274e-05,2]
[405863664,1771369839400,-500.0,8.274e-05,2]
[405863665,1771369839409,-596.0,8.274e-05,2]
[405863666,1771369839418,-151.2254874,8.274e-05,2]
[405863667,1771369839428,-500.0,8.274e-05,2]
[405863668,1771369839438,-500.0,8.274e-05,2]
[405863669,1771369839448,-500.0,8.274e-05,2]
[405863670,1771369839457,-500.0,8.274e-05,2]
[405863671,1771369839467,-150.0,8.274e-05,2]
[405863672,1771369839476,-500.0,8.274e-05,2]
[405863673,1771369839486,-500.0,8.274e-05,2]
[405863674,1771369839495,-150.07216309,8.274e-05,2]
[405863675,1771369839505,-500.0,8.274e-05,2]
[405863676,1771369839515,-150.0,8.274e-05,2]
[405863677,1771369839524,-500.0,8.274e-05,2]
[405863678,1771369839534,-500.0,8.274e-05,2]
[405863679,1771369839544,-500.0,8.274e-05,2]
[405863680,1771369839554,-500.0,8.274e-05,2]
[405863681,1771369839563,-500.0,8.274e-05,2]
[405863682,1771369839573,-500.0,8.274e-05,2]
[405863683,1771369839582,-500.0,8.274e-05,2]
[405863684,1771369839592,-500.0,8.274e-05,2]
[405863685,1771369839603,-150.0,8.274e-05,2]
[405863686,1771369839612,-150.0,8.274e-05,2]
[405863687,1771369839622,-500.0,8.274e-05,2]
[405863688,1771369839632,-500.0,8.329e-05,2]
[405863689,1771369839642,-500.0,8.329e-05,2]
[405863690,1771369839652,-500.0,8.329e-05,2]
[405863691,1771369839662,-500.0,8.329e-05,2]
[405863692,1771369839672,-616.5683879,8.329e-05,2]
[405863693,1771369839682,-596.0,8.329e-05,2]
[405863694,1771369839691,-500.0,8.329e-05,2]
[405863695,1771369839701,-500.0,8.329e-05,2]
[405863696,1771369839711,-500.0,8.329e-05,2]
[405863697,1771369839720,-500.0,8.329e-05,2]
[405863698,1771369839729,-150.0,8.329e-05,2]
[405863699,1771369839739,-500.0,8.329e-05,2]
[405863700,1771369839748,-500.0,8.329e-05,2]
[405863701,1771369839757,-500.0,8.329e-05,2]
[405863702,1771369839767,-150.0,8.329e-05,2]
[405863703,1771369839777,-537.18600864,8.329e-05,2]
[405863704,1771369839787,-500.0,8.329e-05,2]
[405863705,1771369839796,-500.0,8.329e-05,2]
[405863706,1771369839806,-500.0,8.329e-05,2]
[405863707,1771369839815,-500.0,8.329e-05,2]
[405863708,1771369839825,-500.0,8.329e-05,2]
[405863709,1771369839834,-537.36614029,8.329e-05,2]
[405863710,1771369839844,-500.0,8.329e-05,2]
[405863711,1771369839853,-242.84628954,8.329e-05,2]
[405863712,1771369839863,-200.0,8.329e-05,2]
[405863713,1771369839872,-500.0,8.329e-05,2]
[405863714,1771369839882,-500.0,8.383e-05,2]
[405863715,1771369839891,-500.0,8.383e-05,2]
[405863716,1771369839900,-500.0,8.383e-05,2]
[405863717,1771369839909,-500.0,8.383e-05,2]
[405863718,1771369839918,-596.0,8.383e-05,2]
[405863719,1771369839928,-500.0,8.383e-05,2]
[405863720,1771369839938,-178.36591542,8.383e-05,2]
[405863721,1771369839947,-500.0,8.383e-05,2]
[405863722,1771369839957,-500.0,8.383e-05,2]
[405863723,1771369839966,-200.24181775,8.383e-05,2]
[405863724,1771369839975,-510.76125773,8.383e-05,2]
[405863725,1771369839985,-500.0,8.383e-05,2]
[405863726,1771369839994,-500.0,8.383e-05,2]
[405863727,1771369840003,-250.53819001,8.383e-05,2]
[405863728,1771369840013,-500.0,8.383e-05,2]
[405863729,1771369840022,-500.0,8.383e-05,2]
[405863730,1771369840032,-500.0,8.383e-05,2]
[405863731,1771369840041,-500.0,8.383e-05,2]
[405863732,1771369840050,-500.0,8.383e-05,2]
[405863733,1771369840060,-500.0,8.383e-05,2]
[405863734,1771369840069,-500.0,8.383e-05,2]
[405863735,1771369840079,-215.37,8.42e-05,2]
[405863736,1771369840089,-468.51,8.42e-05,2]
[405863737,1771369840102,-500.0,8.438e-05,2]
[405863738,1771369840112,-500.0,8.438e-05,2]
[405863739,1771369840121,-500.0,8.438e-05,2]
[405863740,1771369840131,-500.0,8.438e-05,2]
[405863741,1771369840141,-596.0,8.438e-05,2]
[405863742,1771369840150,-500.0,8.438e-05,2]
[405863743,1771369840160,-500.0,8.438e-05,2]
[405863744,1771369840170,-500.0,8.438e-05,2]
[405863745,1771369840180,-500.0,8.438e-05,2]
[405863746,1771369840190,-329.95129651,8.438e-05,2]
[405863747,1771369840199,-500.0,8.438e-05,2]
[405863748,1771369840208,-500.0,8.438e-05,2]
[405863749,1771369840218,-500.0,8.438e-05,2]
[405863750,1771369840227,-500.0,8.438e-05,2]
[405863751,1771369840236,-500.0,8.438e-05,2]
[405863752,1771369840246,-500.0,8.438e-05,2]
[405863753,1771369840255,-500.0,8.438e-05,2]
[405863754,1771369840264,-500.0,8.493e-05,2]
[405863755,1771369840274,-500.0,8.493e-05,2]
[405863756,1771369840283,-500.0,8.493e-05,2]
[405863757,1771369840292,-500.0,8.493e-05,2]
[405863758,1771369840302,-596.0,8.493e-05,2]
[405863759,1771369840311,-500.0,8.493e-05,2]
[405863760,1771369840322,-500.0,8.493e-05,2]
[405863761,1771369840331,-500.0,8.493e-05,2]
[405863762,1771369840341,-500.0,8.493e-05,2]
[405863763,1771369840350,-500.0,8.493e-05,2]
[405863764,1771369840360,-500.0,8.493e-05,2]
[405863765,1771369840369,-500.0,8.493e-05,2]
[405863766,1771369840379,-500.0,8.493e-05,2]
[405863767,1771369840388,-500.0,8.493e-05,2]
[405863768,1771369840398,-500.0,8.493e-05,2]
[405863769,1771369840407,-500.0,8.493e-05,2]
[405863770,1771369840417,-500.0,8.493e-05,2]
[405863771,1771369840426,-464.38268717,8.548e-05,2]
[405863772,1771369840436,-500.0,8.548e-05,2]
[405863773,1771369840446,-500.0,8.548e-05,2]
[405863774,1771369840455,-500.0,8.548e-05,2]
[405863775,1771369840464,-596.0,8.548e-05,2]
[405863776,1771369840474,-500.0,8.548e-05,2]
[405863777,1771369840483,-475.49905426,8.548e-05,2]
[405863778,1771369840492,-500.0,8.548e-05,2]
[405863779,1771369840502,-500.0,8.548e-05,2]
[405863780,1771369840511,-621.12228144,8.548e-05,2]
[405863781,1771369840520,-500.0,8.548e-05,2]
[405863782,1771369840529,-500.0,8.548e-05,2]
[405863783,1771369840538,-500.0,8.548e-05,2]
[405863784,1771369840547,-500.0,8.548e-05,2]
[405863785,1771369840556,-500.0,8.548e-05,2]
[405863786,1771369840566,-500.0,8.548e-05,2]
[405863787,1771369840575,-500.0,8.603e-05,2]
[405863788,1771369840584,-500.0,8.603e-05,2]
[405863789,1771369840594,-500.0,8.603e-05,2]
[405863790,1771369840603,-596.0,8.603e-05,2]
[405863791,1771369840614,-500.0,8.603e-05,2]
[405863792,1771369840623,-500.0,8.603e-05,2]
[405863793,1771369840633,-500.0,8.603e-05,2]
[405863794,1771369840642,-500.0,8.603e-05,2]
[405863795,1771369840651,-500.0,8.603e-05,2]
[405863796,1771369840661,-500.0,8.603e-05,2]
[405863797,1771369840671,-500.0,8.603e-05,2]
[405863798,1771369840681,-500.0,8.603e-05,2]
[405863799,1771369840690,-500.0,8.603e-05,2]
[405863800,1771369840700,-500.0,8.657e-05,2]
[405863801,1771369840709,-500.0,8.657e-05,2]
[405863802,1771369840719,-500.0,8.657e-05,2]
[405863803,1771369840728,-596.0,8.657e-05,2]
[405863804,1771369840738,-500.0,8.657e-05,2]
[405863805,1771369840748,-500.0,8.657e-05,2]
[405863806,1771369840758,-500.0,8.657e-05,2]
[405863807,1771369840767,-500.0,8.657e-05,2]
[405863808,1771369840776,-500.0,8.657e-05,2]
[405863809,1771369840786,-500.0,8.657e-05,2]
[405863810,1771369840796,-153.2248447,8.657e-05,2]
[405863811,1771369840806,-205.81655615,8.657e-05,2]
[405863812,1771369840816,-500.0,8.657e-05,2]
[405863813,1771369840827,-393.71,8.676e-05,2]
[405863814,1771369840837,-500.0,8.712e-05,2]
[405863815,1771369840847,-500.0,8.712e-05,2]
[405863816,1771369840856,-500.0,8.712e-05,2]
[405863817,1771369840865,-596.0,8.712e-05,2]
[405863818,1771369840874,-500.0,8.712e-05,2]
[405863819,1771369840883,-500.0,8.712e-05,2]
[405863820,1771369840892,-500.0,8.712e-05,2]
[405863821,1771369840902,-500.0,8.712e-05,2]
[405863822,1771369840911,-500.0,8.712e-05,2]
[405863823,1771369840921,-500.0,8.712e-05,2]
[405863824,1771369840930,-500.0,8.712e-05,2]
[405863825,1771369840939,-500.0,8.767e-05,2]
[405863826,1771369840948,-500.0,8.767e-05,2]
[405863827,1771369840957,-500.0,8.767e-05,2]
[405863828,1771369840967,-596.0,8.767e-05,2]
[405863829,1771369840976,-500.0,8.767e-05,2]
[405863830,1771369840985,-500.0,8.767e-05,2]